bitfinex-derivatives/quotes_BTCF0:USTF0_20250416
["timestamp","ask_amount","ask_price","bid_price","bid_amount"]
[1744771969712,0.1191351,83945.0,83944.0,0.11931514]
[1744771970119,0.1805351,83945.0,83944.0,0.11931514]
[1744771970606,0.1805351,83945.0,83944.0,0.00017864]
[1744771971111,0.1805351,83945.0,83944.0,0.00417864]
[1744771971512,0.1815351,83945.0,83944.0,0.00417864]
[1744771972507,0.1815351,83945.0,83944.0,0.00017864]
[1744771972708,0.1191422,83940.0,83939.0,0.00512274]
[1744771972916,0.4799422,83940.0,83939.0,0.00512274]
[1744771973507,0.5443422,83940.0,83939.0,0.00512274]
[1744771973921,0.5443422,83940.0,83939.0,0.00712274]
[1744771974721,0.5453422,83940.0,83939.0,0.00712274]
[1744771975323,0.9061422,83940.0,83939.0,0.00712274]
[1744771975516,0.9369422,83940.0,83939.0,0.00712274]
[1744771975714,0.2153422,83940.0,83939.0,0.00712274]
[1744771975915,0.9369422,83940.0,83939.0,0.00512274]
[1744771976621,0.9369422,83940.0,83939.0,0.00612274]
[1744771977621,0.0595739,83937.0,83931.0,0.00017864]
[1744771977830,0.1191734,83918.0,83917.0,0.2120593]
[1744771978123,0.1191734,83918.0,83917.0,0.2716458]
[1744771978522,0.1191734,83918.0,83917.0,0.3022458]
[1744771978725,0.1500734,83918.0,83917.0,0.3022458]
[1744771978917,0.1500734,83918.0,83917.0,0.1234865]
[1744771979112,0.1500734,83918.0,83917.0,0.0639]
[1744771979411,0.1191748,83917.0,83916.0,0.00899756]
[1744771979611,0.1191791,83914.0,83905.0,0.1815904]
[1744771980011,0.1969791,83914.0,83905.0,0.1815904]
[1744771980210,0.1969791,83914.0,83897.0,0.0323]
[1744771980211,0.059597,83904.0,83897.0,0.0323]
[1744771980417,0.178819,83892.0,83891.0,0.1192113]
[1744771980818,0.0912058,83892.0,83891.0,0.1192113]
[1744771981626,0.0912058,83892.0,83891.0,0.1222113]
[1744771982520,0.0912058,83892.0,83891.0,0.13126047]
[1744771982826,0.3608,83898.0,83897.0,0.1192033]
[1744771983019,0.0595982,83902.0,83899.0,0.1192004]
[1744771983324,0.11937775,83900.0,83899.0,0.1192004]
[1744771983925,0.11937775,83900.0,83899.0,0.1518004]
[1744771984527,0.11937775,83900.0,83899.0,0.1568004]
[1744771984728,0.11937775,83900.0,83899.0,0.1588004]
[1744771986118,0.15047775,83900.0,83899.0,0.1907004]
[1744771988818,0.11937775,83900.0,83899.0,0.1907004]
[1744771989018,0.11937775,83900.0,83899.0,0.2238004]
[1744771991415,0.00017875,83900.0,83899.0,0.2238004]
[1744771992021,0.00025875,83900.0,83899.0,0.2238004]
[1744771994419,0.00025875,83900.0,83899.0,0.23547162]
[1744771996127,0.00025875,83900.0,83899.0,0.24547162]
[1744771996327,0.00025875,83900.0,83899.0,0.23547162]
[1744771999432,0.00025875,83900.0,83899.0,0.2238004]
[1744772007434,0.00025875,83900.0,83899.0,0.1907004]
[1744772009839,0.00025875,83900.0,83899.0,0.1588004]
[1744772010838,0.00025875,83900.0,83899.0,0.1903004]
[1744772019640,0.00017875,83900.0,83899.0,0.1903004]
[1744772020350,0.00025875,83900.0,83899.0,0.1903004]
[1744772020752,0.00025875,83900.0,83899.0,0.2003004]
[1744772022548,0.00025875,83900.0,83899.0,0.1362004]
[1744772022750,0.11945775,83900.0,83899.0,0.1262004]
[1744772023151,0.06255875,83900.0,83899.0,0.1262004]
[1744772024143,0.18175775,83900.0,83899.0,0.1262004]
[1744772024552,0.06255875,83900.0,83899.0,0.1262004]
[1744772025553,0.03085875,83900.0,83899.0,0.1262004]
[1744772025751,0.03077875,83900.0,83899.0,0.1565004]
[1744772026052,0.03085875,83900.0,83899.0,0.1898004]
[1744772033255,0.00025875,83900.0,83899.0,0.1898004]
[1744772033755,0.00017875,83900.0,83899.0,0.1898004]
[1744772033958,0.00025875,83900.0,83899.0,0.1898004]
[1744772037154,0.00025875,83900.0,83899.0,0.1262004]
[1744772037357,0.06365875,83900.0,83899.0,0.1262004]
[1744772037552,0.06365875,83900.0,83899.0,0.1577004]
[1744772044167,0.06365875,83900.0,83899.0,0.1877004]
[1744772048366,0.03095875,83900.0,83899.0,0.1877004]
[1744772050270,0.00025875,83900.0,83899.0,0.3577004]
[1744772050469,0.00010801,83907.0,83906.0,0.1191905]
[1744772050671,0.3608,83910.0,83909.0,0.1191862]
[1744772051164,0.3608,83910.0,83909.0,0.1501862]
[1744772051372,8e-05,83910.0,83909.0,0.1501862]
[1744772051564,0.0302,83915.0,83914.0,0.1191791]
[1744772051766,0.0302,83915.0,83914.0,0.1508791]
[1744772052362,0.00014581,83921.0,83920.0,0.1191706]
[1744772052563,0.0323,83925.0,83924.0,0.1191649]
[1744772052767,0.0323,83925.0,83924.0,0.1501649]
[1744772054171,0.0323,83925.0,83924.0,0.1541649]
[1744772054360,0.0323,83925.0,83924.0,0.16625412]
[1744772054766,0.00010801,83931.0,83930.0,0.1191564]
[1744772054962,0.03240801,83931.0,83930.0,0.1191564]
[1744772055165,0.0323,83931.0,83930.0,0.1507564]
[1744772055370,0.03238,83931.0,83930.0,0.1507564]
[1744772055866,0.03238,83931.0,83930.0,0.1527564]
[1744772059164,0.0323,83931.0,83930.0,0.1527564]
[1744772059368,0.03238,83931.0,83930.0,0.1527564]
[1744772059573,0.03238,83931.0,83930.0,0.1211564]
[1744772059772,0.151535,83931.0,83930.0,0.1211564]
[1744772060168,0.182735,83931.0,83930.0,0.1211564]
[1744772060482,0.06358,83931.0,83930.0,0.1211564]
[1744772067281,0.03238,83931.0,83930.0,0.1211564]
[1744772067473,0.03238,83931.0,83930.0,0.1870564]
[1744772069277,0.0323,83931.0,83930.0,0.1870564]
[1744772069472,0.03238,83931.0,83930.0,0.1870564]
[1744772070082,0.03238,83931.0,83930.0,0.2200564]
[1744772071674,0.03238,83931.0,83930.0,0.1869564]
[1744772078990,0.151535,83931.0,83930.0,0.1211564]
[1744772079289,0.1191748,83917.0,83916.0,0.11935455]
[1744772079475,0.1191748,83917.0,83916.0,0.17894215]
[1744772079784,0.2137748,83917.0,83916.0,0.17894215]
[1744772079987,0.2137748,83917.0,83916.0,0.21194215]
[1744772081486,0.2137748,83917.0,83916.0,0.21494215]
[1744772081786,0.5745748,83917.0,83916.0,0.06276635]
[1744772081977,0.5745748,83917.0,83916.0,0.06376635]
[1744772082177,0.5745748,83917.0,83916.0,0.06476635]
[1744772082990,0.5745748,83917.0,83916.0,0.06276635]
[1744772083288,0.4239,83917.0,83916.0,0.06276635]
[1744772083480,0.392,83917.0,83916.0,0.15726635]
[1744772083789,0.39208,83917.0,83916.0,0.15626635]
[1744772084186,0.42368,83917.0,83916.0,0.15626635]
[1744772084386,0.5428548,83917.0,83916.0,0.12356635]
[1744772084691,0.5428548,83917.0,83916.0,0.00217875]
[1744772084879,0.0595931,83909.0,83907.0,0.1787819]
[1744772085083,0.0943,83908.0,83907.0,0.1787819]
[1744772085387,0.2134876,83908.0,83907.0,0.1787819]
[1744772086690,0.2134876,83908.0,83907.0,0.0595943]
[1744772086881,0.2134876,83908.0,83904.0,0.0618]
[1744772086882,0.1787871,83906.0,83905.0,0.119191]
[1744772087282,0.0595952,83906.0,83905.0,0.150091]
[1744772087483,0.0595952,83906.0,83905.0,0.181291]
[1744772088183,0.1228952,83906.0,83905.0,0.181291]
[1744772088791,0.1228952,83906.0,83905.0,0.182291]
[1744772089188,0.1228952,83906.0,83905.0,0.184291]
[1744772090388,0.1228952,83906.0,83905.0,0.153091]
[1744772093089,0.0595967,83904.0,83902.0,0.2383899]
[1744772093393,0.0626,83903.0,83902.0,0.2383899]
[1744772094492,0.119199,83900.0,83899.0,0.05977855]
[1744772094888,0.181799,83900.0,83899.0,0.05977855]
[1744772095785,0.181799,83900.0,83899.0,0.06377855]
[1744772096494,0.181799,83900.0,83899.0,0.06577855]
[1744772097288,0.181799,83900.0,83892.0,0.0304]
[1744772097289,0.1192104,83892.0,83887.0,0.12434251]
[1744772097488,0.0596073,83889.0,83887.0,0.03802591]
[1744772097692,0.183016,83888.0,83887.0,0.15724221]
[1744772098291,0.183016,83888.0,83887.0,0.12434221]
[1744772098993,0.183016,83888.0,83887.0,0.13234221]
[1744772099591,0.183016,83888.0,83887.0,0.01312591]
[1744772099790,0.1192246,83882.0,83881.0,0.0304]
[1744772099987,0.4800246,83882.0,83881.0,0.0304]
[1744772100186,0.5438246,83882.0,83881.0,0.0304]
[1744772100993,0.1192317,83877.0,83876.0,8e-05]
[1744772101192,0.1192317,83877.0,83876.0,0.1493331]
[1744772101493,0.1820317,83877.0,83876.0,0.1494131]
[1744772102399,0.1820317,83877.0,83876.0,0.1193131]
[1744772102586,0.1830317,83877.0,83876.0,0.1252331]
[1744772102999,0.1830317,83877.0,83876.0,0.1253131]
[1744772103197,0.1830317,83877.0,83876.0,0.00608]
[1744772103387,0.1830317,83877.0,83876.0,0.1253131]
[1744772103586,0.1830317,83877.0,83876.0,0.1594131]
[1744772104893,0.1830317,83877.0,83876.0,0.1915131]
[1744772106001,0.001,83877.0,83876.0,0.1915131]
[1744772106191,0.00108,83877.0,83876.0,0.20353544]
[1744772106497,0.00108,83877.0,83876.0,0.21353544]
[1744772107296,0.001,83877.0,83876.0,0.21353544]
[1744772107487,0.00108,83877.0,83876.0,0.21353544]
[1744772108600,0.001,83877.0,83876.0,0.21353544]
[1744772108801,0.00108,83877.0,83876.0,0.21353544]
[1744772108996,0.00010801,83884.0,83880.0,0.0596136]
[1744772109196,0.00014581,83889.0,83888.0,0.119216]
[1744772109397,0.00014581,83889.0,83888.0,0.202316]
[1744772109695,0.00017875,83896.0,83895.0,0.1192061]
[1744772109895,0.00017875,83896.0,83895.0,0.1847061]
[1744772110900,0.00017875,83896.0,83895.0,0.1857061]
[1744772115701,0.0302,83911.0,83910.0,0.1191848]
[1744772115901,0.0621,83911.0,83910.0,0.1191848]
[1744772116101,0.00014581,83912.0,83911.0,0.1191834]
[1744772116494,0.00014581,83912.0,83911.0,0.1832834]
[1744772116806,0.11932771,83912.0,83911.0,0.1832834]
[1744772117304,0.18172771,83912.0,83911.0,0.1514834]
[1744772118699,0.18372771,83912.0,83911.0,0.1514834]
[1744772119513,0.1787786,83910.0,83909.0,0.119185]
[1744772120708,0.0595945,83907.0,83906.0,0.1191905]
[1744772120914,0.539585,83907.0,83906.0,0.1191905]
[1744772121505,0.571185,83907.0,83906.0,0.1191905]
[1744772122404,0.572185,83907.0,83906.0,0.1191905]
[1744772122911,0.571185,83907.0,83906.0,0.1191905]
[1744772123116,0.572185,83907.0,83906.0,0.1191905]
[1744772127619,0.119199,83900.0,83899.0,0.178797]
[1744772127813,0.479999,83900.0,83899.0,0.178797]
[1744772128016,0.1788106,83896.0,83895.0,0.0596026]
[1744772128513,0.2429106,83896.0,83895.0,0.0596026]
[1744772129707,0.2429106,83896.0,83895.0,0.0616026]
[1744772130415,0.2429106,83896.0,83895.0,0.003]
[1744772130616,0.2429106,83896.0,83895.0,0.1222061]
[1744772130816,0.2429106,83896.0,83895.0,0.003]
[1744772131207,0.2429106,83896.0,83895.0,0.001]
[1744772131613,0.2429106,83896.0,83895.0,0.1202061]
[1744772133518,0.6037106,83896.0,83895.0,0.1202061]
[1744772134610,0.4249,83896.0,83895.0,0.1202061]
[1744772134806,0.4249,83896.0,83895.0,0.2153061]
[1744772135207,0.5441847,83896.0,83895.0,0.2153061]
[1744772135406,0.5441847,83896.0,83895.0,0.1825061]
[1744772136417,0.5441847,83896.0,83895.0,0.2153061]
[1744772138813,0.42498,83896.0,83895.0,0.2153061]
[1744772139320,0.39208,83896.0,83895.0,0.2153061]
[1744772139513,0.5112847,83896.0,83895.0,0.2153061]
[1744772139709,0.5112047,83896.0,83895.0,0.2153061]
[1744772140519,0.5112847,83896.0,83895.0,0.2153061]
[1744772142211,0.5112847,83896.0,83895.0,0.1517061]
[1744772142617,0.5417847,83896.0,83895.0,0.1517061]
[1744772143524,0.5417847,83896.0,83895.0,0.1831061]
[1744772146719,0.1809847,83896.0,83895.0,0.1831061]
[1744772146918,0.06178,83896.0,83895.0,0.1831061]
[1744772147118,0.03128,83896.0,83895.0,0.1831061]
[1744772148408,8e-05,83896.0,83895.0,0.1831061]
[1744772149222,0.3608,83899.0,83898.0,0.1192018]
[1744772149422,0.4800004,83899.0,83898.0,0.1192018]
[1744772149613,0.4800004,83899.0,83898.0,0.1821018]
[1744772150417,0.1192004,83899.0,83898.0,0.1821018]
[1744772150623,0.1818004,83899.0,83898.0,0.1821018]
[1744772151124,0.1818004,83899.0,83898.0,0.1841018]
[1744772152025,0.1818004,83899.0,83898.0,0.1521018]
[1744772152626,0.2140004,83899.0,83898.0,0.1521018]
[1744772154127,0.1818004,83899.0,83898.0,0.1521018]
[1744772154512,0.3608,83900.0,83899.0,0.1192004]
[1744772154717,0.3608,83900.0,83899.0,0.1518004]
[1744772154918,0.3608,83900.0,83899.0,0.1836004]
[1744772155517,0.36088,83900.0,83899.0,0.1856004]
[1744772156021,0.36188,83900.0,83899.0,0.1856004]
[1744772156425,0.36088,83900.0,83899.0,0.1856004]
[1744772156926,0.36088,83900.0,83899.0,0.1836004]
[1744772157127,0.36088,83900.0,83899.0,0.1856004]
[1744772157625,8e-05,83900.0,83899.0,0.1856004]
[1744772158122,0.36094581,83910.0,83908.0,0.1191876]
[1744772158123,0.0313,83909.0,83908.0,0.1191876]
[1744772158829,0.4799848,83910.0,83909.0,0.1191862]
[1744772158830,0.3608,83910.0,83909.0,0.1191862]
[1744772160318,0.36088,83910.0,83909.0,0.1191862]
[1744772160715,8e-05,83910.0,83909.0,0.1191862]
[1744772160920,0.00308,83910.0,83909.0,0.1201862]
[1744772161525,0.00308,83910.0,83909.0,0.1191862]
[1744772161729,0.00308,83910.0,83909.0,0.1201862]
[1744772162233,0.003,83910.0,83909.0,0.1201862]
[1744772162421,0.0323,83912.0,83911.0,0.1191834]
[1744772163733,0.002,83912.0,83911.0,0.1191834]
[1744772164336,0.002,83912.0,83911.0,0.1201834]
[1744772164834,0.0342,83912.0,83911.0,0.1201834]
[1744772176129,0.0342,83912.0,83911.0,0.1529834]
[1744772179145,0.0342,83912.0,83911.0,0.1832834]
[1744772184051,0.03428,83912.0,83911.0,0.1832834]
[1744772184851,0.03428,83912.0,83911.0,0.19502889]
[1744772185453,0.00208,83912.0,83911.0,0.19502889]
[1744772187748,0.002,83912.0,83911.0,0.19502889]
[1744772188252,0.00010801,83918.0,83914.0,0.0595895]
[1744772188457,0.00019684,83927.0,83926.0,0.1191621]
[1744772188662,0.062,83931.0,83930.0,0.1191564]
[1744772189149,0.062,83931.0,83930.0,0.1821564]
[1744772190949,0.062,83931.0,83930.0,0.19122776]
[1744772191350,0.062,83931.0,83930.0,0.19322776]
[1744772192447,0.062,83931.0,83930.0,0.19422776]
[1744772193046,0.062,83931.0,83930.0,0.16352776]
[1744772198959,0.062,83931.0,83930.0,0.13122776]
[1744772199355,0.181155,83931.0,83930.0,0.13022776]
[1744772199750,0.062,83931.0,83930.0,0.13022776]
[1744772200255,0.062,83931.0,83930.0,0.16282776]
[1744772201458,0.062,83931.0,83930.0,0.13022776]
[1744772202360,0.181155,83931.0,83930.0,0.13022776]
[1744772203465,0.181155,83931.0,83930.0,0.01207136]
[1744772203766,0.1191663,83923.0,83922.0,0.00017875]
[1744772203966,0.4799663,83923.0,83922.0,0.11934645]
[1744772204161,0.5423663,83923.0,83922.0,0.00017875]
[1744772204754,0.5423663,83923.0,83922.0,0.11934645]
[1744772206263,0.5433663,83923.0,83922.0,0.11934645]
[1744772206465,0.5433663,83923.0,83922.0,0.12826188]
[1744772206863,0.5433663,83923.0,83922.0,0.12926188]
[1744772208076,0.55554636,83923.0,83922.0,0.12926188]
[1744772208374,0.5433663,83923.0,83922.0,0.12926188]
[1744772208777,0.1787615,83918.0,83917.0,0.1191736]
[1744772208976,0.5395615,83918.0,83917.0,0.1191736]
[1744772209475,0.5395615,83918.0,83917.0,0.12796471]
[1744772209666,0.6030615,83918.0,83917.0,0.12796471]
[1744772210063,0.6030615,83918.0,83917.0,0.12996471]
[1744772211071,0.4838867,83918.0,83917.0,0.12996471]
[1744772211274,0.4243,83918.0,83917.0,0.12996471]
[1744772211475,0.4243,83918.0,83917.0,0.16286471]
[1744772211669,0.42438,83918.0,83917.0,0.16286471]
[1744772211875,0.5435534,83918.0,83917.0,0.16286471]
[1744772214176,0.42438,83918.0,83917.0,0.16286471]
[1744772214572,0.5435534,83918.0,83917.0,0.16286471]
[1744772220267,0.42438,83918.0,83917.0,0.16286471]
[1744772220577,0.5435534,83918.0,83917.0,0.19416471]
[1744772220777,0.5435534,83918.0,83917.0,0.16286471]
[1744772221182,0.42438,83918.0,83917.0,0.16286471]
[1744772222183,0.42438,83918.0,83917.0,0.19416471]
[1744772222376,0.5435534,83918.0,83917.0,0.19416471]
[1744772223679,0.5435534,83918.0,83917.0,0.16286471]
[1744772224786,0.1827534,83918.0,83917.0,0.16286471]
[1744772226383,0.1827534,83918.0,83917.0,0.19596471]
[1744772228984,0.1827534,83918.0,83917.0,0.04369111]
[1744772229172,0.1827534,83918.0,83917.0,0.12996591]
[1744772229677,0.5435534,83918.0,83917.0,0.12996591]
[1744772229883,0.5435534,83918.0,83917.0,0.01079111]
[1744772230385,0.5435534,83918.0,83917.0,0.12996591]
[1744772230579,0.5435534,83918.0,83917.0,0.01079111]
[1744772230773,0.5435534,83918.0,83917.0,0.12996591]
[1744772231978,0.5435534,83918.0,83917.0,0.002]
[1744772234583,0.1191819,83912.0,83911.0,0.00883413]
[1744772234780,0.1191848,83910.0,83909.0,0.11936495]
[1744772235181,0.1842848,83910.0,83909.0,0.00017875]
[1744772236290,0.1842848,83910.0,83909.0,0.00317875]
[1744772236686,0.1842848,83910.0,83909.0,0.00617875]
[1744772238189,0.5450848,83910.0,83909.0,0.00617875]
[1744772238588,0.0595967,83904.0,83899.0,0.1191991]
[1744772238891,0.1192018,83898.0,83897.0,0.06138892]
[1744772239387,0.1516018,83898.0,83897.0,0.06138892]
[1744772239585,0.1516018,83898.0,83897.0,0.07033991]
[1744772239779,0.1516018,83898.0,83897.0,0.18954171]
[1744772239983,0.1817018,83898.0,83897.0,0.18954171]
[1744772240484,0.1817018,83898.0,83897.0,0.19454171]
[1744772241392,0.1827018,83898.0,83897.0,0.20054171]
[1744772241585,0.001,83898.0,83897.0,0.20054171]
[1744772242191,0.00108,83898.0,83897.0,0.20054171]
[1744772243891,0.00108,83898.0,83897.0,0.26404171]
[1744772244094,0.00010801,83904.0,83903.0,0.1191947]
[1744772244293,0.00010801,83904.0,83903.0,0.5748947]
[1744772244693,0.059591,83912.0,83911.0,0.1191834]
[1744772244885,0.059591,83912.0,83911.0,0.1831834]
[1744772245393,0.00014581,83916.0,83913.0,0.0595902]
[1744772245594,0.0311,83919.0,83918.0,0.1191734]
[1744772245892,0.0311,83919.0,83918.0,0.17876]
[1744772245893,0.1191722,83919.0,83918.0,0.17876]
[1744772246094,0.1191722,83919.0,83918.0,0.24276]
[1744772246798,0.1191722,83919.0,83918.0,0.1235866]
[1744772246986,0.1508722,83919.0,83918.0,0.1235866]
[1744772247294,0.1508722,83919.0,83918.0,0.1245866]
[1744772250089,0.1191722,83919.0,83918.0,0.1245866]
[1744772251795,0.1498722,83919.0,83918.0,0.1245866]
[1744772252491,0.1804722,83919.0,83918.0,0.1201734]
[1744772252790,0.1804722,83919.0,83918.0,0.1511734]
[1744772255596,0.5412722,83919.0,83918.0,0.1511734]
[1744772267801,0.5412722,83919.0,83918.0,0.1825734]
[1744772268001,0.1804722,83919.0,83918.0,0.1825734]
[1744772270405,0.5412722,83919.0,83918.0,0.1511734]
[1744772270604,0.5735722,83919.0,83918.0,0.032]
[1744772270906,0.5735722,83919.0,83918.0,0.1201734]
[1744772271607,0.5412722,83919.0,83918.0,0.1534734]
[1744772272002,0.1804722,83919.0,83918.0,0.1855734]
[1744772272306,0.00017875,83920.0,83919.0,0.119172]
[1744772272502,0.00017875,83920.0,83919.0,0.184572]
[1744772273206,0.00017875,83920.0,83919.0,0.434572]
[1744772273404,0.00025875,83920.0,83919.0,0.184572]
[1744772273910,0.00125875,83920.0,83919.0,0.184572]
[1744772274105,0.00125875,83920.0,83919.0,0.185572]
[1744772275308,0.00025875,83920.0,83919.0,0.185572]
[1744772275510,0.00025875,83920.0,83919.0,0.188572]
[1744772276216,0.00025875,83920.0,83919.0,0.549372]
[1744772277216,0.00010801,83928.0,83927.0,0.1191606]
[1744772277605,0.00010801,83928.0,83927.0,0.2121606]
[1744772278320,0.00010801,83928.0,83927.0,0.2151606]
[1744772279019,0.00014581,83934.0,83933.0,0.1191521]
[1744772279206,0.00017875,83936.0,83935.0,0.1191493]
[1744772279405,0.00010801,83941.0,83940.0,0.1191422]
[1744772279609,0.005,83942.0,83941.0,0.1191408]
[1744772280814,0.005,83942.0,83941.0,0.13097029]
[1744772281005,0.008,83942.0,83941.0,0.1191408]
[1744772281612,0.006,83942.0,83941.0,0.1201408]
[1744772282415,0.006,83942.0,83941.0,0.12930163]
[1744772283009,0.0376,83942.0,83941.0,0.12930163]
[1744772290619,0.00017875,83950.0,83949.0,0.1191294]
[1744772291022,0.00017875,83950.0,83949.0,0.4799294]
[1744772291229,0.1190969,83972.0,83949.0,0.3908]
[1744772291422,0.0322,83969.0,83967.0,0.1191039]
[1744772292021,0.03548,83968.0,83967.0,0.1191039]
[1744772292215,0.0354,83968.0,83967.0,0.1191039]
[1744772292415,0.03548,83968.0,83967.0,0.1191039]
[1744772293122,0.1545825,83968.0,83967.0,0.1191039]
[1744772293623,0.5153825,83968.0,83967.0,0.1191039]
[1744772293816,0.5283825,83968.0,83967.0,0.1201039]
[1744772299031,0.5283825,83968.0,83967.0,0.001]
[1744772299226,0.5283825,83968.0,83967.0,0.1201039]
[1744772299428,0.1786679,83963.0,83960.0,0.0595569]
[1744772299625,0.2382234,83963.0,83962.0,0.1191104]
[1744772299826,0.5990234,83963.0,83962.0,0.1191104]
[1744772300727,0.6020234,83963.0,83962.0,0.1191104]
[1744772300929,0.6020234,83963.0,83962.0,0.1201104]
[1744772301227,0.6100234,83963.0,83962.0,0.1201104]
[1744772301437,0.0595555,83962.0,83951.0,0.0595628]
[1744772301636,0.1191252,83952.0,83951.0,0.1786855]
[1744772301933,0.4799252,83952.0,83951.0,0.1786855]
[1744772302732,0.4799252,83952.0,83951.0,0.2382483]
[1744772303124,0.5111252,83952.0,83951.0,0.2382483]
[1744772303626,0.5111252,83952.0,83951.0,0.1191256]
[1744772304119,0.5121252,83952.0,83951.0,0.1191256]
[1744772305235,0.5171252,83952.0,83951.0,0.1191256]
[1744772305437,0.059564,83950.0,83943.0,0.00017864]
[1744772305733,0.4799365,83944.0,83943.0,0.00017864]
[1744772305928,0.4799365,83944.0,83943.0,0.11931654]
[1744772306125,0.4799365,83944.0,83943.0,0.00017864]
[1744772308632,0.1191394,83942.0,83941.0,0.00916083]
[1744772308844,0.0595767,83933.0,83930.0,0.2383072]
[1744772309137,0.479955,83931.0,83930.0,0.2978847]
[1744772309326,0.479955,83931.0,83930.0,0.1787326]
[1744772309832,0.479955,83931.0,83930.0,0.18786922]
[1744772311037,0.480955,83931.0,83930.0,0.18786922]
[1744772312140,0.00108,83931.0,83930.0,0.18886922]
[1744772314547,8e-05,83931.0,83930.0,0.18886922]
[1744772314746,8e-05,83931.0,83930.0,0.19086922]
[1744772315146,8e-05,83931.0,83930.0,0.18986922]
[1744772315443,8e-05,83931.0,83930.0,0.19186922]
[1744772324648,0.3608,83939.0,83938.0,0.119145]
[1744772324837,0.00014581,83941.0,83940.0,0.1787129]
[1744772325249,0.0325,83945.0,83944.0,0.1191365]
[1744772325449,0.03260801,83945.0,83944.0,0.1191365]
[1744772325648,0.03260801,83945.0,83944.0,0.1497365]
[1744772325850,0.15174311,83945.0,83944.0,0.1497365]
[1744772326052,0.15174311,83945.0,83944.0,0.1827365]
[1744772326352,0.18444311,83945.0,83944.0,0.1827365]
[1744772326653,0.06530801,83945.0,83944.0,0.1827365]
[1744772327552,0.03560801,83945.0,83944.0,0.1827365]
[1744772327852,0.00310801,83945.0,83944.0,0.1827365]
[1744772328048,0.00210801,83945.0,83944.0,0.1827365]
[1744772328448,0.002,83945.0,83944.0,0.1827365]
[1744772328644,0.002,83945.0,83944.0,0.1521365]
[1744772328849,0.0335,83945.0,83944.0,0.1521365]
[1744772329245,0.03358,83945.0,83944.0,0.1521365]
[1744772329645,0.1527151,83945.0,83944.0,0.1521365]
[1744772330340,0.5454151,83945.0,83944.0,0.1521365]
[1744772330551,0.5759151,83945.0,83944.0,0.1521365]
[1744772330853,0.5759151,83945.0,83944.0,0.1191365]
[1744772332749,0.45678,83945.0,83940.0,0.0302]
[1744772332954,0.1191436,83939.0,83938.0,0.0595723]
[1744772333357,0.1807436,83939.0,83938.0,0.0595723]
[1744772335152,0.1807436,83939.0,83938.0,0.0925723]
[1744772335352,0.1808236,83939.0,83938.0,0.0925723]
[1744772335751,0.1808236,83939.0,83938.0,0.0915723]
[1744772336549,0.5416236,83939.0,83938.0,0.0915723]
[1744772336860,0.5436236,83939.0,83938.0,0.0915723]
[1744772337049,0.5416236,83939.0,83938.0,0.0915723]
[1744772337363,0.1818236,83939.0,83938.0,0.0925723]
[1744772341771,0.06268,83939.0,83938.0,0.0925723]
[1744772341973,0.06268,83939.0,83938.0,0.1242723]
[1744772342165,0.0626,83939.0,83938.0,0.1242723]
[1744772342366,0.06268,83939.0,83938.0,0.1242723]
[1744772344271,0.1818236,83939.0,83938.0,0.1242723]
[1744772346175,0.06268,83939.0,83938.0,0.1242723]
[1744772347572,0.06268,83939.0,83938.0,0.0925723]
[1744772347773,0.1818236,83939.0,83938.0,0.0925723]
[1744772348278,0.06268,83939.0,83938.0,0.0925723]
[1744772352169,0.00108,83939.0,83938.0,0.1245723]
[1744772354577,0.001,83939.0,83938.0,0.1245723]
[1744772355370,0.00108,83939.0,83938.0,0.1245723]
[1744772357078,0.001,83939.0,83938.0,0.1245723]
[1744772357272,0.00108,83939.0,83938.0,0.1245723]
[1744772361183,0.00108,83939.0,83938.0,0.0925723]
[1744772362787,0.00108,83939.0,83938.0,0.1230723]
[1744772362977,0.03268,83939.0,83938.0,0.1230723]
[1744772363178,0.00108,83939.0,83938.0,0.1230723]
[1744772363687,0.001,83939.0,83938.0,0.1230723]
[1744772363985,0.00108,83939.0,83938.0,0.1230723]
[1744772372488,0.03278,83939.0,83938.0,0.1230723]
[1744772375689,0.03278,83939.0,83938.0,0.0925723]
[1744772395203,0.0327,83939.0,83938.0,0.0925723]
[1744772396198,0.3608,83948.0,83947.0,0.1191323]
[1744772396805,0.4800108,83948.0,83947.0,0.1191323]
[1744772397704,0.4840108,83948.0,83947.0,0.1512323]
[1744772398106,0.5453108,83948.0,83947.0,0.1512323]
[1744772398808,0.42618,83948.0,83947.0,0.1512323]
[1744772399901,0.42518,83948.0,83947.0,0.1512323]
[1744772400303,0.06438,83948.0,83947.0,0.1512323]
[1744772400604,0.0335,83948.0,83947.0,0.2146323]
[1744772400808,0.03358,83948.0,83947.0,0.2146323]
[1744772401003,0.00308,83948.0,83947.0,0.2146323]
[1744772401204,0.00308,83948.0,83947.0,0.22637551]
[1744772401708,0.003,83948.0,83947.0,0.2146323]
[1744772401910,0.00308,83948.0,83947.0,0.2146323]
[1744772402707,0.00308,83948.0,83947.0,0.1823323]
[1744772403512,0.03448,83948.0,83947.0,0.1823323]
[1744772408512,0.1191422,83940.0,83930.0,0.00913662]
[1744772408714,0.4799422,83940.0,83936.0,0.0595739]
[1744772408915,0.4799422,83940.0,83930.0,0.00913662]
[1744772409113,0.5441422,83940.0,83935.0,0.1191483]
[1744772409415,0.5441422,83940.0,83931.0,0.059577]
[1744772409608,0.5441422,83940.0,83932.0,0.0595763]
[1744772409808,0.5441422,83940.0,83939.0,0.12032224]
[1744772410009,0.425,83940.0,83939.0,0.12032224]
[1744772410212,0.42508,83940.0,83939.0,0.15182224]
[1744772410518,8e-05,83940.0,83939.0,0.18442224]
[1744772410715,0.0642,83945.0,83944.0,0.1191365]
[1744772410915,0.06430801,83945.0,83944.0,0.1191365]
[1744772411619,0.06430801,83945.0,83944.0,0.1824365]
[1744772412413,0.06630801,83945.0,83944.0,0.1824365]
[1744772416723,0.0662,83945.0,83944.0,0.1824365]
[1744772416920,0.002,83945.0,83944.0,0.19439823]
[1744772417234,0.0331,83951.0,83950.0,0.119128]
[1744772417824,0.03318,83951.0,83950.0,0.182928]
[1744772418426,0.03718,83951.0,83950.0,0.182928]
[1744772418628,0.0381,83951.0,83950.0,0.182928]
[1744772418831,0.03818,83951.0,83950.0,0.182928]
[1744772421538,0.1191323,83947.0,83946.0,0.0595665]
[1744772421933,0.1825323,83947.0,83946.0,0.0595665]
[1744772422732,0.1825323,83947.0,83946.0,0.1786972]
[1744772423233,0.1845323,83947.0,83946.0,0.1786972]
[1744772428428,0.1845323,83947.0,83946.0,0.2109972]
[1744772428825,0.0654,83947.0,83946.0,0.2109972]
[1744772429033,0.0327,83947.0,83946.0,0.2109972]
[1744772429230,0.0317,83947.0,83946.0,0.2119972]
[1744772429635,0.0307,83947.0,83946.0,0.2119972]
[1744772429831,0.1809323,83947.0,83946.0,0.2119972]